Cogmind - Beta 10.2 @@@ ROGUE MODE // 2020.11.30 @ 18:29:10 // Halloween2020/ForbiddenLore Player: Sherlockkat Result: Self-destructed Performance ------------- Evolutions (5) 2500 Regions Visited (12) 2400 Robots Destroyed (135) 675 Value Destroyed (5668) 5668 Prototype IDs (5) 100 Alien Tech Used (0) 0 Bonus (1885) 1885 TOTAL SCORE: 13228 Bonus ------- High Alert Combat Kills 285 Entered Garrisons 600 Used RIF Installer 1000 Cogmind --------- Core Integrity 702/1000 Matter 204/300 Energy 4/170 System Corruption 2% Temperature Cool (0) Movement Treading (210) Ox2 Location -5/Garrison Parts ------- > --- POWER (1) -------- Micro Fission Core > --- PROPULSION (5) --- Armored Medium Treads > --- UTILITY (7) ------ Advanced Cooling System High-capacity Storage Unit Advanced Targeting Computer Improved Weapon Cycler Improved Medium Armor Plating Improved Shield Generator Relay Coupler [Grunt] (10) > --- WEAPON (4) ------- Gauss Rifle Coil Gun > --- INVENTORY (12) --- Light Nuclear Core Micro Fission Core Improved Coolant Injector Relay Coupler [NC] (45) Relay Coupler [NC] (45) Relay Coupler [Hunter] (28) Smartbomb Launcher Peak State ------------ > --- POWER ------------ Micro Fission Core > --- PROPULSION ------- Medium Treads Medium Treads Improved Medium Treads Armored Medium Treads Armored Medium Treads > --- UTILITY ---------- Advanced Cooling System High-capacity Storage Unit Advanced Targeting Computer Improved Kinecellerator Improved Weapon Cycler Layered Medium Armor Plating Relay Coupler [Grunt] > --- WEAPON ----------- Heavy Plasma Cannon Coil Gun KE Penetrator KE Penetrator > --- INVENTORY -------- Light Nuclear Core Micro Fission Core Improved Treads Improved Coolant Injector Improved Medium Armor Plating Improved Shield Generator Relay Coupler [NC] Relay Coupler [NC] Relay Coupler [Hunter] Heavy EM Shotgun Smartbomb Launcher [Rating: 87] Favorites ----------- Power Light Ion Engine Engine Light Ion Engine Power Core Micro Fission Core Propulsion Light Treads Treads Light Treads Utility High-capacity Storage Unit Device Improved Heat Sink Storage High-capacity Storage Unit Processor Advanced Targeting Computer Hackware Relay Coupler [NC] Protection Hardened Heavy Armor Plating Weapon Assault Rifle Energy Gun EM Pulse Gun Energy Cannon Cooled Particle Cannon Ballistic Gun Assault Rifle Ballistic Cannon Flak Cannon Launcher Smartbomb Launcher Special Weapon Remote Datajack Special Melee Weapon Improved Datajack Build | -11 -10 -10 -10 -9 -8 -8 -7 -6 -5 -5 -5 -5 ------- Run | Scr Mat Min Exi Min Mat Gar Fac Fac Fac Gar Fac Gar Slots Evolved 10 | . . . . . 4 . 2 2 2 . . . Power . | . . . . . . . . . . . . . Propulsion 3 | . . . . . 2 . 1 . . . . . Utility 5 | . . . . . 1 . 1 2 1 . . . Weapon 2 | . . . . . 1 . . . 1 . . . Parts Attached 128 | 7 7 . 1 3 29 4 32 8 14 5 . 18 Power 9 | 1 . . . 1 3 1 1 . 1 . . 1 Engine 6 | 1 . . . 1 2 1 1 . . . . . Core 3 | . . . . . 1 . . . 1 . . 1 Reactor . | . . . . . . . . . . . . . Propulsion 30 | 2 . . . 1 11 . 9 . 2 2 . 3 Treads 30 | 2 . . . 1 11 . 9 . 2 2 . 3 Leg . | . . . . . . . . . . . . . Wheel . | . . . . . . . . . . . . . Hover . | . . . . . . . . . . . . . Flight . | . . . . . . . . . . . . . Utility 32 | 1 4 . 1 1 5 1 2 6 4 1 . 6 Device 11 | . 1 . . 1 1 1 . 1 4 . . 2 Storage 5 | 1 2 . 1 . . . 1 . . . . . Processor 4 | . 1 . . . 2 . . 1 . . . . Hackware 4 | . . . . . 1 . 1 1 . 1 . . Protection 8 | . . . . . 1 . . 3 . . . 4 Artifact . | . . . . . . . . . . . . . Weapon 57 | 3 3 . . . 10 2 20 2 7 2 . 8 Energy Gun 18 | 2 1 . . . 4 1 7 1 1 . . 1 Energy Cannon 6 | . . . . . . . 2 . 2 . . 2 Ballistic Gun 21 | 1 1 . . . 6 . 6 . 2 1 . 4 Ballistic Cannon 3 | . . . . . . 1 1 . 1 . . . Launcher 4 | . 1 . . . . . 1 . . 1 . 1 Special Weapon 1 | . . . . . . . 1 . . . . . Impact Weapon . | . . . . . . . . . . . . . Slashing Weapon . | . . . . . . . . . . . . . Piercing Weapon . | . . . . . . . . . . . . . Special Melee Weapon 4 | . . . . . . . 2 1 1 . . . Unidentified Prototypes 5 | . . . . . 1 . 4 . . . . . Parts Lost 29 | . 1 . . . 9 . 4 . . 2 . 13 Power 3 | . . . . . 2 . 1 . . . . . Propulsion 11 | . . . . . 2 . 2 . . 1 . 6 Utility 5 | . . . . . 1 . . . . . . 4 Weapon 10 | . 1 . . . 4 . 1 . . 1 . 3 Highest Loss Streak 8 | . 1 . . . 4 . 2 . . 2 . 8 Average Slot Usage (%) 97 | . 95 100 100 100 97 100 99 96 93 91 88 95 Engine 7 | . 14 14 14 14 5 6 7 6 . . . . Core 1 | . . . . . 3 2 . . 4 5 5 5 Treads 32 | . 28 28 28 28 35 36 37 33 29 28 29 28 Device 8 | . 6 14 14 14 3 9 7 6 12 11 11 14 Storage 9 | . 14 14 14 14 9 9 7 6 5 5 5 5 Processor 5 | . 3 . . . 9 9 7 6 5 5 5 5 Hackware 3 | . . . . . . . 7 9 3 4 5 5 Protection 2 | . . . . . 3 . . 6 5 5 5 5 Energy Gun 7 | . 13 14 14 14 8 9 4 2 4 5 5 . Energy Cannon 1 | . . . . . . . 3 4 1 . . 2 Ballistic Gun 13 | . 13 14 14 14 18 12 12 8 7 10 11 16 Naked Turns . | . . . . . . . . . . . . . Heaviest Build 82 | 11 24 24 40 42 50 51 57 75 82 81 77 77 Greatest Support 140 | 40 40 40 40 40 86 86 115 115 124 132 132 140 Greatest Overweight (x) 1 | . . . . 1 . . . . . . . . Average Overweight (x) . | . . . . . . . . . . . . . Largest Inventory Capacity 12 | 6 10 10 12 12 12 12 12 12 12 12 12 12 Average Capacity 11 | 5 7 10 10 12 12 12 12 12 12 12 12 12 Most Carried 12 | 4 10 10 11 12 12 12 12 12 12 12 11 12 Average Carried 10 | 2 6 9 10 11 11 12 10 11 11 11 11 10 Final Capacity 12 | 6 10 10 12 12 12 12 12 12 12 12 12 12 Final Carried 12 | 4 10 10 11 12 12 12 12 12 12 11 11 8 Class Distribution -------------------- 39% | Mutant 37% | Scavenger-Gunner 15% | Gunner 3% | Scavenger-Mutant Dominant Class ---------------- Mutant | -10/Materials Mutant | -10/Mines Mutant | -10/Exiles Mutant | -9/Mines Scavenger-Gunner | -8/Materials Scavenger-Gunner | -8/Garrison Scavenger-Gunner | -7/Factory Mutant | -6/Factory Gunner | -5/Factory Gunner | -5/Garrison Gunner | -5/Factory Scavenger-Gunner | -5/Garrison Resources | -11 -10 -10 -10 -9 -8 -8 -7 -6 -5 -5 -5 -5 ----------- Run | Scr Mat Min Exi Min Mat Gar Fac Fac Fac Gar Fac Gar Matter Collected 3245 | 276 323 12 . 88 650 140 579 251 252 191 32 451 Remotely . | . . . . . . . . . . . . . Salvage Created 6029 | 92 587 52 . 146 1519 134 1324 447 266 550 85 827 Parts 315 | 2 33 3 . 13 88 9 69 22 12 16 7 41 Haulers Intercepted 5 | . 2 . . . 1 . 2 . . . . . Recyclers Shooed 3 | . 1 . . . . . 1 1 . . . . Parts Field Recycled . | . . . . . . . . . . . . . Retrieved Matter . | . . . . . . . . . . . . . Parts Self-Destructed . | . . . . . . . . . . . . . Prevented . | . . . . . . . . . . . . . Kills | -11 -10 -10 -10 -9 -8 -8 -7 -6 -5 -5 -5 -5 ------- Run | Scr Mat Min Exi Min Mat Gar Fac Fac Fac Gar Fac Gar Combat Hostiles Destroyed 106 | . 7 . . 6 23 5 24 10 4 10 3 14 Guns 74 | . 3 . . 4 23 3 12 6 4 7 3 9 Cannons 16 | . . . . . . 2 9 3 . . . 2 AOE 15 | . 4 . . 2 . . 2 1 . 3 . 3 Classes Destroyed 16 | 1 5 1 . . 5 2 1 . . . . 1 Worker 5 | . . . . . 3 . 2 . . . . . Builder 7 | . 1 1 . . . . 4 . 1 . . . Tunneler 2 | . . 1 . . . . . 1 . . . . Hauler 5 | . 2 . . . 1 . 2 . . . . . Recycler 6 | 1 2 . . . 1 . 1 1 . . . . Watcher 4 | . 1 . . . 2 . 1 . . . . . Swarmer 26 | . 3 . . 4 . . 7 8 . . 3 1 Grunt 42 | . 4 . . 2 8 3 11 1 2 8 . 3 Brawler 3 | . . . . . 2 . . . . . . 1 Duelist 2 | . . . . . 2 . . . . . . . Protector 1 | . . . . . . 1 . . . . . . Sentry 13 | . . . . . 8 . 1 . . . . 4 Demolisher 1 | . . . . . . 1 . . . . . . Hunter 10 | . . . . . 3 . . . 2 2 . 3 Programmer 7 | . . . . . . . 5 1 . . . 1 Behemoth 1 | . . . . . . . . . . . . 1 Best Kill Streak 10 | 1 5 1 . 4 6 3 7 5 3 10 3 4 Combat Bots Only 10 | . 4 . . 4 5 3 5 4 2 10 3 4 Max Kills in Single Turn 3 | 1 2 1 . 2 2 1 3 1 2 2 1 1 Gunslinging 1 | . . . . . . . 1 . . 1 . . Exploded 2 | . 2 . . 2 . . 2 1 . 2 . 1 Melee . | . . . . . . . . . . . . . Uniques/NPCs Destroyed . | . . . . . . . . . . . . . Combat | -11 -10 -10 -10 -9 -8 -8 -7 -6 -5 -5 -5 -5 -------- Run | Scr Mat Min Exi Min Mat Gar Fac Fac Fac Gar Fac Gar Damage Taken 8149 | . 260 . . 234 1361 516 1196 810 522 494 174 2582 Core 703 | . 35 . . 10 119 108 116 17 47 . 16 235 Absorbed by Shields 73 | . . . . . . . . . . . . 73 Core Remaining (%) 84 | 100 . . . 82 . 58 83 98 . . . . Volleys Fired 289 | 2 35 4 . 17 60 14 58 28 13 15 4 39 Largest 4 | 2 2 2 . 2 3 3 3 3 3 3 3 4 Hottest 186 | 70 70 60 . 60 107 114 113 118 110 108 108 186 Shots Fired 739 | 4 66 8 . 34 179 36 154 56 35 37 12 118 Gun 646 | 4 63 8 . 34 179 30 111 41 27 35 12 102 Cannon 80 | . . . . . . 6 39 15 8 . . 12 Launcher 13 | . 3 . . . . . 4 . . 2 . 4 Special . | . . . . . . . . . . . . . Kinetic 476 | 2 32 4 . 17 128 24 87 28 28 26 8 92 Thermal 79 | 2 7 . . . 8 . 32 15 3 . . 12 Explosive 6 | . . . . . . . . . . 2 . 4 Electromagnetic 178 | . 27 4 . 17 43 12 35 13 4 9 4 10 Robot Hit Streak 34 | 3 10 13 . 6 23 12 34 15 21 30 4 29 Robot Miss Streak 7 | 1 4 1 . 3 3 1 3 7 2 1 2 2 Penetration Max 2 | . . . . . 1 . . . 2 2 . 1 Secondary Targets 9 | . . . . . 1 . 1 . . 3 1 3 Max Gunslinging Chain 1 | . . . . . 1 . 1 . . 1 1 1 Shots Hit Robots 541 | 3 44 6 . 20 137 25 107 42 29 33 6 89 Core Hits 304 | 2 19 3 . 10 65 22 67 30 17 27 6 36 Critical Hits 9 | . 1 . . . 3 . . . 1 . . 4 Critical Kills 4 | . . . . . 2 . . . . . . 2 Critical Parts Destroyed 4 | . 1 . . . . . . . 1 . . 2 Melee Attacks 5 | . . . . . . . . 1 1 3 . . Impact . | . . . . . . . . . . . . . Slashing . | . . . . . . . . . . . . . Piercing . | . . . . . . . . . . . . . Sneak Attacks 3 | . . . . . . . . 1 1 1 . . Combat Hostiles 1 | . . . . . . . . . . 1 . . Follow-up Attacks . | . . . . . . . . . . . . . Damage Inflicted 11866 | 36 724 75 . 316 2360 441 2324 1209 732 1057 127 2465 Guns 8345 | 36 555 75 . 242 2309 280 1132 544 562 668 127 1815 Cannons 1806 | . . . . . . 161 919 325 170 . . 231 Explosions 1715 | . 169 . . 74 51 . 273 340 . 389 . 419 Melee . | . . . . . . . . . . . . . Ramming . | . . . . . . . . . . . . . Kinetic 6429 | 23 244 37 . 117 1828 340 708 367 535 469 47 1714 Thermal 2131 | 13 97 . . 74 65 . 904 665 82 . . 231 Explosive 808 | . . . . . . . . . . 389 . 419 Electromagnetic 2498 | . 383 38 . 125 467 101 712 177 115 199 80 101 Impact . | . . . . . . . . . . . . . Slashing . | . . . . . . . . . . . . . Piercing . | . . . . . . . . . . . . . Highest Corruption 5 | . 1 1 1 1 . . 5 . . . . 2 Average Corruption 1 | . 1 1 1 1 . . 1 . . . . 1 Corruption Purged . | . . . . . . . . . . . . . Effects 17 | . . 1 1 5 . . 7 . . . . 3 Message Errors 5 | . . 1 1 2 . . 1 . . . . . Matter Fused 1 | . . . . . . . 1 . . . . . Energy Discharges 1 | . . . . . . . . . . . . 1 Data Loss (minor) 7 | . . . . 2 . . 4 . . . . 1 Data Loss (major) 1 | . . . . . . . 1 . . . . . Targeting Errors 1 | . . . . 1 . . . . . . . . Weapon Failures 1 | . . . . . . . . . . . . 1 Overload Shots 7 | . . . . . . . 1 6 . . . . Overflow Damage 141 | . . . . . . . . 127 . 14 . . Projectiles 57 | . . . . . . . . 57 . . . . Explosions 84 | . . . . . . . . 70 . 14 . . Melee . | . . . . . . . . . . . . . Knockbacks 19 | . . . . . . 6 8 . 5 . . . Impact . | . . . . . . . . . . . . . Kinetic 19 | . . . . . . 6 8 . 5 . . . Secondary . | . . . . . . . . . . . . . Self-Inflicted Damage 203 | . 38 . . 36 31 . 50 48 . . . . Shots 5 | . 1 . . 1 1 . 1 1 . . . . Rammed . | . . . . . . . . . . . . . Targets Rammed . | . . . . . . . . . . . . . Kicked . | . . . . . . . . . . . . . Crushed . | . . . . . . . . . . . . . Highest Temperature 160 | 18 123 . . . 160 72 10 . 18 . . 30 Average Temperature 38 | 10 55 . . . 43 46 2 . 9 . . 14 Received Heat Transfer 1395 | . 111 . . 60 360 135 216 36 63 84 . 330 Siege Activations . | . . . . . . . . . . . . . Robots Corrupted 1 | . . . . . . . 1 . . . . . Combat Hostiles 1 | . . . . . . . 1 . . . . . Parts Fried 10 | . 3 . . . 1 . 3 . 2 1 . . Impact Corruptions . | . . . . . . . . . . . . . Robots Melted . | . . . . . . . . . . . . . Combat Hostiles . | . . . . . . . . . . . . . Parts Melted 2 | . 1 . . . . . 1 . . . . . Heat Transferred 2689 | 37 272 . . . 137 . 1249 559 111 . . 324 Parts Sabotaged . | . . . . . . . . . . . . . Parts Stolen . | . . . . . . . . . . . . . Parts Stripped . | . . . . . . . . . . . . . Power Chain Reactions 5 | . 1 . . 1 1 . 1 1 . . . . Missiles Intercepted . | . . . . . . . . . . . . . Alert | -11 -10 -10 -10 -9 -8 -8 -7 -6 -5 -5 -5 -5 ------- Run | Scr Mat Min Exi Min Mat Gar Fac Fac Fac Gar Fac Gar Peak Influence 682 | 5 184 13 . 90 502 251 641 682 350 387 318 587 Initial 313 | . 3 13 . . 35 91 131 313 265 143 203 222 Average 211 | . 58 9 . 39 250 174 253 455 257 238 267 401 Maximum Alert Level 2 | . . . . . 2 1 2 2 1 1 1 2 Low Security (%) 46 | 100 100 100 . 100 34 67 26 . 6 60 . . Level 1 41 | . . . . . 55 32 64 39 93 39 100 56 Level 2 11 | . . . . . 9 . 8 60 . . . 43 Level 3 . | . . . . . . . . . . . . . Level 4 . | . . . . . . . . . . . . . Level 5 . | . . . . . . . . . . . . . High Security . | . . . . . . . . . . . . . Max Security . | . . . . . . . . . . . . . Squads Dispatched 16 | . 1 . . . 7 . 8 . . . . . Investigation 2 | . 1 . . . 1 . . . . . . . Extermination 6 | . . . . . . . 6 . . . . . Reinforcement 4 | . . . . . 2 . 2 . . . . . Assault . | . . . . . . . . . . . . . Garrison 4 | . . . . . 4 . . . . . . . Intercept . | . . . . . . . . . . . . . Construction Impeded 1 | . . . . . . . 1 . . . . . Haulers Reinforced 1 | . . . . . . . 1 . . . . . Stealth | -11 -10 -10 -10 -9 -8 -8 -7 -6 -5 -5 -5 -5 --------- Run | Scr Mat Min Exi Min Mat Gar Fac Fac Fac Gar Fac Gar Distress Signals 8 | . . . . . 8 . . . . . . . Communications Jammed . | . . . . . . . . . . . . . Distress Signals . | . . . . . . . . . . . . . Times Spotted 141 | . 10 . . 9 37 6 28 11 4 13 4 19 Peak Tracking Total 7 | . 4 . . 4 4 3 4 4 2 5 3 7 Tactical Retreats 7 | . 1 . . 1 1 . . 2 . 1 1 . Traps | -11 -10 -10 -10 -9 -8 -8 -7 -6 -5 -5 -5 -5 ------- Run | Scr Mat Min Exi Min Mat Gar Fac Fac Fac Gar Fac Gar Traps Triggered 4 | . 1 . . . . . 2 . . . . 1 Indirectly . | . . . . . . . . . . . . . Trap Hack Attempts . | . . . . . . . . . . . . . Triggered . | . . . . . . . . . . . . . Disarmed . | . . . . . . . . . . . . . Reprogrammed 4 | . . . . . 4 . . . . . . . Reused . | . . . . . . . . . . . . . Traps Extracted . | . . . . . . . . . . . . . Installed . | . . . . . . . . . . . . . Triggered . | . . . . . . . . . . . . . Machines | -11 -10 -10 -10 -9 -8 -8 -7 -6 -5 -5 -5 -5 ---------- Run | Scr Mat Min Exi Min Mat Gar Fac Fac Fac Gar Fac Gar Machines Disabled 23 | . 1 . . . 6 1 3 8 2 1 . 1 Max in Single Turn 8 | . 1 . . . 1 1 1 8 1 1 . 1 Garrison Relay 3 | . . . . . . 1 . . . 1 . 1 Machines Sabotaged . | . . . . . . . . . . . . . Garrisons Compromised . | . . . . . . . . . . . . . Overloaded Fab Kills . | . . . . . . . . . . . . . Fab Network Shutdowns 1 | . . . . . . . 1 . . . . . Hacking | -11 -10 -10 -10 -9 -8 -8 -7 -6 -5 -5 -5 -5 --------- Run | Scr Mat Min Exi Min Mat Gar Fac Fac Fac Gar Fac Gar Machines Accessed 21 | . 4 . . . 6 . 8 . 1 . 2 . Terminals 15 | . 4 . . . 5 . 5 . . . 1 . Fabricators 1 | . . . . . . . 1 . . . . . Repair Stations 1 | . . . . . . . 1 . . . . . Recycling Units . | . . . . . . . . . . . . . Scanalyzers 1 | . . . . . . . 1 . . . . . Garrison Access 3 | . . . . . 1 . . . 1 . 1 . Total Hacks 48 | . 8 . . . 22 . 14 . 1 . 3 . Successful 22 | . . . . . 10 . 9 . 1 . 2 . Failed 26 | . 8 . . . 12 . 5 . . . 1 . Catastrophic 5 | . 2 . . . 2 . 1 . . . . . Database Lockouts . | . . . . . . . . . . . . . Manual 11 | . 6 . . . 4 . . . . . 1 . Terminals 37 | . 8 . . . 19 . 8 . . . 2 . Fabricators 2 | . . . . . . . 2 . . . . . Repair Stations 2 | . . . . . . . 2 . . . . . Recycling Units . | . . . . . . . . . . . . . Scanalyzers 2 | . . . . . . . 2 . . . . . Garrison Access 5 | . . . . . 3 . . . 1 . 1 . Terminal Hacks 12 | . . . . . 8 . 3 . . . 1 . Alert Level 1 | . . . . . 1 . . . . . . . Unreport Threat 3 | . . . . . 2 . 1 . . . . . Locate Traps 4 | . . . . . 1 . 2 . . . 1 . Reprogram Traps 1 | . . . . . 1 . . . . . . . Hauler Manifests 1 | . . . . . 1 . . . . . . . Zone Layout 2 | . . . . . 2 . . . . . . . Fabricator Hacks 2 | . . . . . . . 2 . . . . . Load Schematic 1 | . . . . . . . 1 . . . . . Build 1 | . . . . . . . 1 . . . . . Repair Station Hacks 2 | . . . . . . . 2 . . . . . Scan Component 1 | . . . . . . . 1 . . . . . Repair 1 | . . . . . . . 1 . . . . . Recycling Unit Hacks . | . . . . . . . . . . . . . Scanalyzer 2 | . . . . . . . 2 . . . . . Insert Component 1 | . . . . . . . 1 . . . . . Analyze 1 | . . . . . . . 1 . . . . . Garrison Access Hacks 3 | . . . . . 1 . . . 1 . 1 . Unlock Access 3 | . . . . . 1 . . . 1 . 1 . Unauthorized Hacks 1 | . . . . . 1 . . . . . . . Terminals 1 | . . . . . 1 . . . . . . . Track 1 | . . . . . 1 . . . . . . . Fabricators . | . . . . . . . . . . . . . Repair Stations . | . . . . . . . . . . . . . Recycling Units . | . . . . . . . . . . . . . Scanalyzers . | . . . . . . . . . . . . . Garrison Access . | . . . . . . . . . . . . . Data Cores Recovered . | . . . . . . . . . . . . . Used . | . . . . . . . . . . . . . Hacking Detections 18 | . 4 . . . 6 . 6 . 1 . 1 . Full Trace Events 2 | . 1 . . . 1 . . . . . . . Feedback Events 1 | . 1 . . . . . . . . . . . Corruption 1 | . 1 . . . . . . . . . . . Feedback Blocked . | . . . . . . . . . . . . . Robot Schematics Acquired . | . . . . . . . . . . . . . Robots Built . | . . . . . . . . . . . . . Matter . | . . . . . . . . . . . . . Time . | . . . . . . . . . . . . . Total Robot Build Rating . | . . . . . . . . . . . . . Part Schematics Acquired 1 | . . . . . . . 1 . . . . . Parts Built 2 | . . . . . . . 2 . . . . . Matter 146 | . . . . . . . 146 . . . . . Time 73 | . . . . . . . 73 . . . . . Total Part Build Rating 6 | . . . . . . . 6 . . . . . Parts Repaired 1 | . . . . . . . 1 . . . . . Time 16 | . . . . . . . 16 . . . . . Parts Recycled . | . . . . . . . . . . . . . Recycled Matter . | . . . . . . . . . . . . . Retrieved Matter . | . . . . . . . . . . . . . Retrieved Components . | . . . . . . . . . . . . . Parts Scanalyzed 1 | . . . . . . . 1 . . . . . Part Schematics Acquired 1 | . . . . . . . 1 . . . . . Parts Damaged . | . . . . . . . . . . . . . Bothacking | -11 -10 -10 -10 -9 -8 -8 -7 -6 -5 -5 -5 -5 ------------ Run | Scr Mat Min Exi Min Mat Gar Fac Fac Fac Gar Fac Gar Used RIF Installer 2 | . . . . . . 1 . . . 1 . . Coupler Efficiency 1 | . . . . . . . . . . 1 . . Robots Hacked 5 | . . . . . . . . 1 1 3 . . Non-combat 2 | . . . . . . . . 1 1 . . . Combat 3 | . . . . . . . . . . 3 . . Robot Hacks Applied 5 | . . . . . . . . 1 1 3 . . map_walls 1 | . . . . . . . . . 1 . . . link_fov 1 | . . . . . . . . 1 . . . . formatsys_high 3 | . . . . . . . . . . 3 . . Relay Couplers Released 10 | . . . . . . 3 . . . 4 . 3 Machine Destruction 10 | . . . . . . 3 . . . 4 . 3 Attached 2 | . . . . . . . 1 . . 1 . . Robots Rewired . | . . . . . . . . . . . . . Allies Hacked . | . . . . . . . . . . . . . Hacks Repelled . | . . . . . . . . . . . . . Allies | -11 -10 -10 -10 -9 -8 -8 -7 -6 -5 -5 -5 -5 -------- Run | Scr Mat Min Exi Min Mat Gar Fac Fac Fac Gar Fac Gar Total Allies 5 | . . 2 . . . . . . . 3 . . Largest Group 3 | . . 2 1 . . . . . . 3 . . Highest-Rated Group 87 | . . 45 31 . . . . . . 87 . . Highest-Rated Ally 31 | . . 31 31 . . . . . . 29 . . Total Orders . | . . . . . . . . . . . . . Ally Attacks 15 | . . . . . . . . . . 15 . . Total Damage 116 | . . . . . . . . . . 116 . . Kills . | . . . . . . . . . . . . . Allies Corrupted . | . . . . . . . . . . . . . Allies Melted . | . . . . . . . . . . . . . Intel | -11 -10 -10 -10 -9 -8 -8 -7 -6 -5 -5 -5 -5 ------- Run | Scr Mat Min Exi Min Mat Gar Fac Fac Fac Gar Fac Gar Robot Analysis Total . | . . . . . . . . . . . . . Derelict Logs Recovered 4 | . . 2 . 2 . . . . . . . . Drone Launches . | . . . . . . . . . . . . . Drone Recoveries . | . . . . . . . . . . . . . Exploration | -11 -10 -10 -10 -9 -8 -8 -7 -6 -5 -5 -5 -5 ------------- Run | Scr Mat Min Exi Min Mat Gar Fac Fac Fac Gar Fac Gar Turns Passed 7752 | 111 891 681 288 498 1449 271 1517 542 497 334 163 510 Spaces Moved 3877 | 61 460 416 178 242 593 139 770 289 264 162 93 210 Core 5 | 5 . . . . . . . . . . . . Treads 3872 | 56 460 416 178 242 593 139 770 289 264 162 93 210 Legs . | . . . . . . . . . . . . . Wheels . | . . . . . . . . . . . . . Hover . | . . . . . . . . . . . . . Flight . | . . . . . . . . . . . . . Fastest Speed 50 | 50 160 160 160 160 160 160 154 154 152 158 161 161 Average Speed 159 | 150 160 160 160 170 160 160 157 154 158 159 161 161 Slowest Speed 180 | 160 160 160 160 180 160 160 160 154 161 161 161 166 Overloaded Moves . | . . . . . . . . . . . . . Propulsion Burnouts . | . . . . . . . . . . . . . Robots Hopped . | . . . . . . . . . . . . . Cave-ins Triggered . | . . . . . . . . . . . . . Exploration Rate (%) 34 | 4 68 82 50 53 46 30 21 10 7 44 3 32 Regions Visited 12 Branch Regions 3 Pre-discovered Areas 1 | . . . . 1 . . . . . . . . Known Exits Taken 3 | . . . . . 1 . . . 1 . 1 . Unknown Exits Taken 7 | 1 1 1 1 1 . . 1 1 . . . . Scrap Searched . | . . . . . . . . . . . . . Spaces Dug 3 | . . . . . . . . 3 . . . . Terrain Destroyed 132 | . 4 . . 6 3 . 4 37 2 30 . 46 Melee . | . . . . . . . . . . . . . Projectile 16 | . . . . . 1 . 2 4 2 2 . 5 AOE 116 | . 4 . . 6 2 . 2 33 . 28 . 41 Terrain Rammed . | . . . . . . . . . . . . . Walls Destroyed . | . . . . . . . . . . . . . Machines Disabled . | . . . . . . . . . . . . . Actions | -11 -10 -10 -10 -9 -8 -8 -7 -6 -5 -5 -5 -5 --------- Run | Scr Mat Min Exi Min Mat Gar Fac Fac Fac Gar Fac Gar Total 4866 | 73 551 424 182 296 966 161 951 333 324 209 97 299 Wait 426 | . 32 3 . 25 246 . 65 4 15 15 . 21 Move 3867 | 60 459 415 177 241 593 137 769 288 264 161 93 210 Hop . | . . . . . . . . . . . . . Pick Up 63 | 4 11 1 2 4 19 2 10 . 4 4 . 2 Fast Attach 38 | 6 2 . . . 6 1 8 2 8 . . 5 Attach 39 | . 1 . . . 13 . 7 3 2 4 . 9 Detach 16 | . 1 . . . 2 . 1 4 2 2 . 4 Swap 51 | 1 4 . 1 3 10 3 17 3 4 1 . 4 Drop 72 | . 6 1 2 6 17 4 16 . 11 4 . 5 Fire 289 | 2 35 4 . 17 60 14 58 28 13 15 4 39 Melee 5 | . . . . . . . . 1 1 3 . . Ram . | . . . . . . . . . . . . . Kick . | . . . . . . . . . . . . . Crush . | . . . . . . . . . . . . . Escape Stasis . | . . . . . . . . . . . . . Rewire . | . . . . . . . . . . . . . Trap . | . . . . . . . . . . . . . Miscellaneous . | . . . . . . . . . . . . . Route ------- -11/Scrapyard -10/Materials (discovered 3 exits: [*Mat x2] / [*Min]) -10/Mines (discovered 3 exits: [*Mat x2] / [*Exi]) -10/Exiles -9/Mines -8/Materials (discovered 2 exits: *Fac / Gar) -8/Garrison -7/Factory (discovered 2 exits: *Fac / Sto) -6/Factory -5/Factory -5/Garrison -5/Factory -5/Garrison History --------- Turn | Location | Event 7 | -11/Scrapyard | Discovered new exit (range 15) 112 | -11/Scrapyard | Entered Materials 235 | -10/Materials | Discovered new exit (range 12) 303 | -10/Materials | Build established: Mutant 308 | -10/Materials | Discovered new exit (range 16) 960 | -10/Materials | Discovered new exit (range 16) 1003 | -10/Materials | Entered Mines 1019 | -10/Mines | Discovered new exit (range 6) 1021 | -10/Mines | Met a Derelict bent on vengeance 1196 | -10/Mines | Learned 2 Materials zone layouts 1222 | -10/Mines | Found a hidden stash of uninstalled traps 1462 | -10/Mines | Discovered new exit (range 12) 1678 | -10/Mines | Deemed a non-threat by the Exiles lab entrance 1678 | -10/Mines | Discovered new exit (range 5) 1684 | -10/Mines | Entered Exiles 1684 | -10/Exiles | Accompanied by 1 ally 1714 | -10/Exiles | Led the pair of lost Derelicts to a safe place 1728 | -10/Exiles | Met 8R-AWN 1750 | -10/Exiles | Met EX-HEX 1817 | -10/Exiles | Met EX-DEC 1952 | -10/Exiles | Discovered new exit (range 10) 1972 | -10/Exiles | Entered Mines 2134 | -9/Mines | Learned Materials stockpile data 2275 | -9/Mines | Joined a pair of Derelicts in attacking an 0b10 outpost 2447 | -9/Mines | Discovered new exit (range 8) 2470 | -9/Mines | Entered Materials 2470 | -8/Materials | Evolved 4 slots: Propulsion x2, Utility x1, Weapon x1 2629 | -8/Materials | Lost 4 parts (1p1n2w) 2848 | -8/Materials | Build established: Scavenger-Gunner 3044 | -8/Materials | Garrison activated, responded to threat 3382 | -8/Materials | Garrison activated, responded to threat 3486 | -8/Materials | Lost 3 parts (1p1n1w) 3558 | -8/Materials | Discovered new exit (range 16) 3919 | -8/Materials | Identified exit to Garrison 3919 | -8/Materials | Entered Garrison 3927 | -8/Garrison | Installed Relay Interface Framework 3972 | -8/Garrison | Triggered checkpoint 4022 | -8/Garrison | Garrison Relay disabled 4096 | -8/Garrison | Triggered checkpoint 4138 | -8/Garrison | Triggered checkpoint 4171 | -8/Garrison | Discovered new exit (range 12) 4190 | -8/Garrison | Entered Factory 4190 | -7/Factory | Evolved 2 slots: Propulsion x1, Utility x1 4191 | -7/Factory | Identified exit to Storage 4562 | -7/Factory | Repaired Imp. Treads 5473 | -7/Factory | Fabricated Adv. Treads? 5573 | -7/Factory | Discovered new exit (range 11) 5595 | -7/Factory | Local fabrication network quarantined 5707 | -7/Factory | Entered another Factory area 5707 | -6/Factory | Evolved 2 slots: Utility x2 5890 | -6/Factory | Build established: Gunner 6151 | -6/Factory | Discovered new exit (range 16) 6234 | -6/Factory | Build established: Mutant 6249 | -6/Factory | Entered another Factory area 6249 | -5/Factory | Evolved 2 slots: Utility x1, Weapon x1 6746 | -5/Factory | Identified exit to Garrison 6746 | -5/Factory | Entered Garrison 6755 | -5/Garrison | Expanded RIF knowledge: Coupler Efficiency 6808 | -5/Garrison | Triggered checkpoint 6855 | -5/Garrison | Garrison Relay disabled 6918 | -5/Garrison | Triggered checkpoint 6930 | -5/Garrison | Triggered checkpoint 7025 | -5/Garrison | Destroyed 10 combat bots 7062 | -5/Garrison | Discovered new exit (range 10) 7080 | -5/Garrison | Entered Factory 7243 | -5/Factory | Identified exit to Garrison 7243 | -5/Factory | Entered Garrison 7274 | -5/Garrison | Triggered checkpoint 7344 | -5/Garrison | Build established: Gunner 7346 | -5/Garrison | Garrison Relay disabled 7413 | -5/Garrison | Spotted B-75 Beast 7472 | -5/Garrison | Destroyed B-75 Beast 7516 | -5/Garrison | Triggered checkpoint 7640 | -5/Garrison | Triggered checkpoint 7753 | -5/Garrison | Self-destructed Last Messages --------------- 07735_ Slug penetrates B-60 Warrior. 07735_ Adv. Treads destroyed. 07735_ Critical hit. 07738_ Slug penetrates B-60 Warrior. 07738_ B-60 Warrior destroyed. 07738_ Switching to secondary target: G-50 Soldier. 07738_ Slug penetrates Wall. 07741_ Lyr. Medium Armor Plating destroyed. 07743_ Arm. Medium Treads destroyed. 07746_ Imp. Medium Armor Plating destroyed. 07747_ KE Penetrator destroyed. 07747_ S-27 Virus destroyed. 07747_ Switching to secondary target: G-50 Soldier. 07747_ Slug penetrates S-27 Virus. 07749_ The unstable cave ceiling collapses. 07749_ Med. Treads destroyed. 07749_ KE Penetrator destroyed. 07750_ Slug penetrates S-27 Virus. 07750_ Slug penetrates G-50 Soldier. 07752_ The unstable cave ceiling collapses. Map ----- +----------------------------------------------------+ | ?????????????????????????????????????????????????? | | ?????????????????????????????????????????????????? | | ?????????????????????????????????????????????????? | | ?????????????????????????????????????????????????? | | ?????????????????????????????????????????????????? | | ?????????????????????????????????????????????????? | | ?????????????????????????????????????????????????? | | ?????????????????????????????????????????????????? | | ????????????????????????? ??????????????????????? | | ????????????????????????? ??????????????????????? | | ????????????????????????# #?????????????????????? | | ????????????????????????# #?????????????????????? | | ?????????????? ???##???# #?????????????????????? | | ?????????????? ?? ??# #?????????????????????? | | ?????????????# ##" ?## ##????????????????????? | | ??????????????? ? ##???????????????????? | | ???????????????? ? ???????????????????? | | ?????????????# ?? ? ????????????????????? | | ?????????????#%" ?#g ?#s #????????????????????? | | ???????????###" ## ## ###??????????????????? | | ???????????# =%[ ss C#??????????????????? | | ???????????# ! %= C#??????????????????? | | ???????????# g/[!* #??????????????????? | | ???????????# *%[ ! C#?#????????????????? | | ?????????????# ??#; #!! ### #????????????????? | | ???????????### ## @ ### #????????????????? | | ?????????? # ##????????????????? | | ?????????? #????????????????? | | ?????????? =# # #????????????????? | | ???????????######## ## # ###??????????????? | | ??????????????????# # # # ??????????????? | | ??????????????????###### ### ####?????????????? | | ?????????????????????# ## ### #????????????????? | | ?????????????????????# # #????????????????? | | ?????????????????????# # =##=*#????????????????? | | ?????????????????????### ### ################## | | ???????????????????????## !!]!! ^ ^^ | | ????????????????????????# ![!] ^^ ^^ | | ????????????????????????# ^ ^ | | ????????????????????????####### ############# ### | | ??????????????????????????????# #??????????# #?? | | ??????????????????????????????# #??????????# #?? | | ??????????????????????????????# ############# #?? | | ??????????????????????????????# % ! #?? | | ??????????????????????????????# [!% #?? | | ??????????????????????????????##!!!##### #####?? | | ??????????????????????????????#"" ""#??# #?????? | | ??????????????????????????????#######??#####?????? | | ?????????????????????????????????????????????????? | | ?????????????????????????????????????????????????? | +----------------------------------------------------+ Best States ------------- Heat Dissipation 71 Coolant Potential 80 Energy Generation 18 Energy Capacity 275 Matter Stores 300 Matter Capacity 300 Sight Range 18 Terrain Scan Density 10 Armor Coverage 600 Propulsion Shielding 33 Weapon Cycling 20 Evasion (%) 40 Targeting Accuracy 14 Recoil Reduction 5 Kinecelleration 40 Offensive Hacking 10 Defensive Hacking 10 Relay Coupler Types 49 Relay Coupler Value 1 Item Schematics ----------------- Adv. Treads | -7/Factory | Scanalyzed Robot Schematics ------------------ None Fabricated ------------ Adv. Treads | x2 | -7/Factory Alien Tech Used ----------------- None Achievements -------------- None Challenges ------------ None Game ------ Seed AdvancedNovaProtomatter Manual? 0 Play Time 00:54:58 Cumulative 380.1 hours Start 2020.11.30 @ 17:32:34 End 2020.11.30 @ 18:29:10 Sessions 1 Manual Loads 0 Difficulty Rogue Special Mode Halloween2020/ForbiddenLore Game No. 434 Rogue 434 Adventurer 0 Explorer 0 Win Type - Total 32 Types 21/3/7/1/0/0/0/0/0 Lore% 77 Gallery% 87 Achievement% 58 Wizard Run 0 Options --------- ASCII 1 Keyboard 1 Movement Numpad Keybinds 0 Fullscreen 1 Font 18/SmallcapsGlow Map View 76x50 Tactical HUD 1 Map Filters NONE Filters NONE Steam 1 RUN: 516859f1-bf3e-430b-bf88-f9bc0ddd5bf3